fUSD/lending_fUSD_20260305
["ID","MTS","AMOUNT","RATE_DAILY","PERIOD"]
[407714302,1772699446155,-1000.0,0.00035616,10]
[407714303,1772699446166,-1000.0,0.00035616,10]
[407714304,1772699446175,-1000.0,0.00035616,10]
[407714305,1772699446185,-1000.0,0.00035616,10]
[407714306,1772699446195,-1000.0,0.00035616,10]
[407714307,1772699446204,-1000.0,0.00035616,10]
[407714308,1772699446219,-1000.0,0.00035616,10]
[407714309,1772699446230,-1000.0,0.00035616,10]
[407714310,1772699446239,-1000.0,0.00035616,10]
[407714311,1772699446248,-1000.0,0.00035616,10]
[407714312,1772699446257,-1000.0,0.00035616,10]
[407714313,1772699446266,-1000.0,0.00035616,10]
[407714314,1772699446276,-181.0,0.00035616,10]
[407714315,1772699446285,-190.21696105,0.00035616,2]
[407714316,1772699446294,-795.46336,0.00035888,30]
[407714317,1772699446304,-160.0,0.00036,10]
[407714318,1772699446313,-1029.86,0.00036,120]
[407714319,1772699446323,-854.43,0.00036008,30]
[407714320,1772699446331,-795.46336,0.00036088,30]
[407714321,1772699446341,-827.67,0.00036277,10]
[407714322,1772699446350,-795.46336,0.00036288,30]
[407714323,1772699446359,-1310.0,0.000363,2]
[407714324,1772699446369,-1029.86,0.000364,120]
[407714327,1772699446577,-150.0,0.0003643,2]
[407714328,1772699446587,-795.46336,0.00036488,30]
[407714329,1772699446598,-1158.4890981,0.00036518,2]
[407714330,1772699446609,-4740.89154135,0.00036518,2]
[407714331,1772699446620,-795.46336,0.00036688,30]
[407714332,1772699446630,-804.17102365,0.00036731,2]
[407714333,1772699446640,-644.79446246,0.00036731,2]
[407714334,1772699446650,-672.77,0.00036752,10]
[407714335,1772699446659,-159.0,0.00036756,30]
[407714336,1772699446669,-1353.3,0.00036767,5]
[407714337,1772699446679,-1029.86,0.000368,120]
[407714338,1772699446688,-795.46336,0.00036888,30]
[407714339,1772699446698,-1096.0,0.000369,120]
[407714340,1772699446707,-658.0,0.000369,120]
[407714341,1772699446717,-395.0,0.000369,120]
[407714342,1772699446727,-1000.0,0.00036927,2]
[407714343,1772699446735,-1000.0,0.00036927,2]
[407714344,1772699446746,-1000.0,0.00036927,2]
[407714345,1772699446755,-1000.0,0.00036927,2]
[407714346,1772699446764,-1000.0,0.00036927,2]
[407714347,1772699446774,-195.52,0.00036944,10]
[407714348,1772699446783,-585.0,0.00036945,2]
[407714349,1772699446792,-150.0,0.00036945,2]
[407714350,1772699446801,-150.0,0.00036945,2]
[407714351,1772699446810,-150.0,0.00036945,2]
[407714352,1772699446819,-150.0,0.00036945,2]
[407714353,1772699446828,-150.0,0.00036945,2]
[407714354,1772699446837,-184.0,0.00036945,2]
[407714355,1772699446847,-505.0,0.00036957,22]
[407714356,1772699446856,-795.46336,0.00037088,30]
[407714357,1772699446865,-459.59439681,0.000372,120]
[407714358,1772699446876,-459.59439678,0.000372,120]
[407714359,1772699446888,-459.59439678,0.000372,120]
[407714360,1772699446898,-1029.86,0.000372,120]
[407714361,1772699446907,-795.46336,0.00037288,30]
[407714362,1772699446916,-180.24131651,0.00037397,18]
[407714363,1772699446926,-1021.10227,0.000374,120]
[407714364,1772699446936,-795.46336,0.00037488,30]
[407714365,1772699446945,-454.71,0.000376,14]
[407714366,1772699446956,-1029.86,0.000376,120]
[407714367,1772699446965,-795.46336,0.00037688,30]
[407714368,1772699446975,-562.0,0.00037737,2]
[407714369,1772699446984,-150.0,0.00037737,2]
[407714370,1772699446993,-150.0,0.00037737,2]
[407714371,1772699447002,-297.0,0.00037737,2]
[407714372,1772699447011,-875.96587139,0.00037753,120]
[407714373,1772699447021,-795.46336,0.00037888,30]
[407714374,1772699447031,-200.0,0.00037908,30]
[407714375,1772699447040,-309.0,0.00037908,30]
[407714376,1772699447049,-287.37049951,0.0003794,2]
[407714377,1772699447059,-1029.86,0.00038,120]
[407714378,1772699447068,-1013.0264,0.00038018,2]
[407714379,1772699447078,-795.46336,0.00038088,30]
[407714380,1772699447089,-1296.51960255,0.000381,33]
[407714381,1772699447099,-150.0,0.00038252,2]
[407714382,1772699447110,-150.0,0.00038252,7]
[407714383,1772699447119,-214.0,0.00038252,7]
[407714384,1772699447128,-152.0,0.00038279,3]
[407714385,1772699447137,-795.46336,0.00038288,30]
[407714386,1772699447146,-500.0,0.00038356,5]
[407714387,1772699447155,-280.0,0.0003838,5]
[407714388,1772699447164,-1029.86,0.000384,120]
[407714389,1772699447173,-795.46336,0.00038488,30]
[407714390,1772699447183,-5000.0,0.000385,60]
[407714391,1772699447192,-715.60177442,0.00038517,45]
[407714392,1772699447202,-150.0,0.00038614,7]
[407714393,1772699447212,-150.0,0.00038614,7]
[407714394,1772699447222,-150.0,0.00038614,7]
[407714395,1772699447231,-189.0,0.00038614,7]
[407714396,1772699447241,-168.0,0.00038635,2]
[407714397,1772699447251,-795.46336,0.00038688,30]
[407714398,1772699447260,-1096.0,0.00038745,120]
[407714399,1772699447269,-658.0,0.00038745,120]
[407714400,1772699447279,-395.0,0.00038745,120]
[407714401,1772699447288,-1353.3,0.00038786,7]
[407714402,1772699447297,-459.59439678,0.00038834,120]
[407714403,1772699447307,-565.0,0.00038857,30]
[407714404,1772699447316,-1090.0,0.00038857,30]
[407714405,1772699447325,-152.0,0.00038872,4]
[407714406,1772699447335,-545.25988028,0.00038904,5]
[407714407,1772699447344,-854.43,0.00038943,30]
[407714408,1772699447353,-795.46336,0.00039088,30]
[407714409,1772699447362,-168.0,0.00039181,7]
[407714410,1772699447372,-168.0,0.00039241,7]
[407714411,1772699447382,-795.46336,0.00039288,30]
[407714412,1772699447391,-168.0,0.00039299,7]
[407714413,1772699447400,-152.0,0.00039464,5]
[407714414,1772699447410,-833.92535153,0.0003947,2]
[407714415,1772699447419,-668.65185757,0.0003947,2]
[407714416,1772699447428,-795.46336,0.00039488,30]
[407714417,1772699447437,-2280.93,0.00039499,55]
[407714418,1772699447446,-197.254,0.00039499,55]
[407714419,1772699447455,-5000.0,0.000395,80]
[407714420,1772699447464,-168.0,0.00039504,7]
[407714421,1772699447473,-795.46336,0.00039688,30]
[407714422,1772699447483,-505.0,0.00039826,24]
[407714423,1772699447492,-1158.4890981,0.00039837,15]
[407714424,1772699447501,-4740.89154135,0.00039837,2]
[407714425,1772699447510,-795.46336,0.00039888,30]
[407714426,1772699447520,-163.03230264,0.0003989,2]
[407714427,1772699447529,-1065.11,0.0003998,5]
[407714428,1772699447538,-260.0,0.00039992,7]
[407714429,1772699447547,-317.72,0.0004,120]
[407714430,1772699447556,-198.68,0.0004,120]
[407714431,1772699447565,-711.13,0.0004,120]
[407714432,1772699447574,-370.03,0.0004,120]
[407714433,1772699447583,-645.2,0.0004,120]
[407714434,1772699447592,-325.53,0.0004,120]
[407714435,1772699447601,-347.37,0.0004,120]
[407714436,1772699447610,-1027.76,0.0004,120]
[407714437,1772699447620,-153.0,0.0004,120]
[407714438,1772699447629,-151.0,0.0004,120]
[407714439,1772699447638,-1310.0,0.0004,2]
[407714440,1772699447648,-175.93063674,0.0004,120]
[407714441,1772699447657,-2000.0,0.0004,120]
[407714442,1772699447667,-571.75747747,0.0004,21]
[407714443,1772699447676,-150.93,0.0004,2]
[407714444,1772699447685,-152.0,0.00040057,6]
[407714445,1772699447695,-795.46336,0.00040088,30]
[407714446,1772699447704,-150.0,0.00040165,2]
[407714447,1772699447714,-150.0,0.00040202,7]
[407714448,1772699447723,-218.0,0.00040202,7]
[407714449,1772699447733,-1047.00256811,0.00040274,50]
[407714450,1772699447743,-1029.0514823,0.00040274,50]
[407714451,1772699447752,-1049.87129365,0.00040274,50]
[407714452,1772699447762,-1011.00974628,0.00040274,50]
[407714453,1772699447771,-1100.4745225,0.00040274,50]
[407714454,1772699447780,-1165.96920229,0.00040274,50]
[407714455,1772699447790,-274.0,0.00040278,120]
[407714456,1772699447799,-795.46336,0.00040288,30]
[407714457,1772699447808,-168.0,0.00040318,2]
[407714458,1772699447817,-168.0,0.00040398,2]
[407714459,1772699447826,-578.19217107,0.0004048,2]
[407714460,1772699447836,-795.46336,0.00040488,30]
[407714461,1772699447845,-5000.0,0.000405,100]
[407714462,1772699447854,-204.864366,0.000406,20]
[407714463,1772699447863,-255.0,0.00040622,7]
[407714464,1772699447878,-168.0,0.00040625,2]
[407714465,1772699447887,-152.0,0.0004065,7]
[407714466,1772699447896,-1096.0,0.00040682,120]
[407714467,1772699447906,-658.0,0.00040682,120]
[407714468,1772699447915,-395.0,0.00040682,120]
[407714469,1772699447925,-795.46336,0.00040688,30]
[407714470,1772699447934,-454.71,0.000407,14]
[407714471,1772699447943,-1353.3,0.00040805,30]
[407714472,1772699447952,-1091.64636051,0.00040845,6]
[407714473,1772699447962,-179.0,0.00040849,7]
[407714474,1772699447971,-1117.62,0.00040867,2]
[407714475,1772699447981,-795.46336,0.00040888,30]
[407714476,1772699447990,-151.0,0.000409,120]
[407714477,1772699448000,-150.0,0.00040984,14]
[407714478,1772699448009,-169.0,0.00040984,14]
[407714479,1772699448019,-153.0,0.00041,120]
[407714480,1772699448028,-649.24901751,0.00041,30]
[407714481,1772699448037,-1033.7242933,0.00041068,120]
[407714482,1772699448046,-443.02469713,0.00041068,120]
[407714483,1772699448055,-300.0,0.00041068,22]
[407714484,1772699448064,-795.46336,0.00041088,30]
[407714485,1772699448074,-150.0,0.00041096,10]
[407714486,1772699448083,-500.0,0.00041096,7]
[407714487,1772699448092,-300.0,0.00041096,10]
[407714488,1772699448102,-342.0,0.00041096,60]
[407714489,1772699448111,-395.0,0.00041096,120]
[407714490,1772699448120,-300.0,0.00041096,30]
[407714491,1772699448129,-300.0,0.00041096,30]
[407714492,1772699448138,-300.0,0.00041096,30]
[407714493,1772699448147,-300.0,0.00041096,30]
[407714494,1772699448157,-300.0,0.00041096,30]
[407714495,1772699448166,-300.0,0.00041096,30]
[407714496,1772699448175,-300.0,0.00041096,30]
[407714497,1772699448184,-300.0,0.00041096,30]
[407714498,1772699448193,-300.0,0.00041096,30]
[407714499,1772699448202,-300.0,0.00041096,30]
[407714500,1772699448212,-1275.98,0.00041096,90]
[407714501,1772699448221,-300.0,0.00041096,30]
[407714502,1772699448231,-300.0,0.00041096,30]
[407714503,1772699448240,-300.0,0.00041096,30]
[407714504,1772699448249,-300.0,0.00041096,30]
[407714505,1772699448258,-300.0,0.00041096,30]
[407714506,1772699448267,-300.0,0.00041096,30]
[407714507,1772699448276,-300.0,0.00041096,30]
[407714508,1772699448286,-300.0,0.00041096,30]
[407714509,1772699448295,-300.0,0.00041096,30]
[407714510,1772699448304,-300.0,0.00041096,30]
[407714511,1772699448314,-300.0,0.00041096,30]
[407714512,1772699448323,-300.0,0.00041096,30]
[407714513,1772699448333,-300.0,0.00041096,30]
[407714514,1772699448342,-300.0,0.00041096,30]
[407714515,1772699448351,-300.0,0.00041096,30]
[407714516,1772699448360,-168.0,0.00041143,2]
[407714517,1772699448369,-168.0,0.00041154,2]
[407714518,1772699448379,-175.29342847,0.000412,10]
[407714519,1772699448388,-152.0,0.00041243,8]
[407714520,1772699448397,-795.46336,0.00041288,30]
[407714521,1772699448407,-150.0,0.00041372,14]
[407714522,1772699448416,-150.0,0.00041372,14]
[407714523,1772699448426,-259.0,0.00041372,14]
[407714524,1772699448435,-242.0,0.00041372,30]
[407714525,1772699448444,-168.0,0.00041379,2]
[407714526,1772699448453,-200.0,0.00041462,7]
[407714527,1772699448463,-200.0,0.00041462,7]
[407714528,1772699448472,-200.0,0.00041462,7]
[407714529,1772699448481,-200.0,0.00041462,7]
[407714530,1772699448490,-200.0,0.00041462,7]
[407714531,1772699448500,-176.0,0.00041462,7]
[407714532,1772699448510,-216.75420379,0.00041468,120]
[407714533,1772699448519,-795.46336,0.00041488,30]
[407714534,1772699448529,-168.0,0.00041506,2]
[407714535,1772699448538,-168.0,0.00041525,2]
[407714536,1772699448547,-168.0,0.00041633,120]
[407714537,1772699448557,-250.0,0.00041644,10]
[407714538,1772699448566,-1000.0,0.00041644,7]
[407714539,1772699448575,-500.0,0.00041644,10]
[407714540,1772699448585,-1022.39725485,0.00041644,10]
[407714541,1772699448595,-795.46336,0.00041688,30]
[407714542,1772699448605,-168.0,0.0004175,2]
[407714543,1772699448615,-168.0,0.0004175,2]
[407714544,1772699448624,-3501.0,0.00041807,2]
[407714545,1772699448634,-1341.0,0.00041807,2]
[407714546,1772699448644,-152.0,0.00041836,9]
[407714547,1772699448656,-500.0,0.00041876,120]
[407714548,1772699448666,-500.0,0.00041876,120]
[407714549,1772699448675,-500.0,0.00041876,120]
[407714550,1772699448684,-500.0,0.00041876,120]
[407714551,1772699448693,-1256.33,0.00041876,120]
[407714552,1772699448703,-854.43,0.00041879,120]
[407714553,1772699448712,-795.46336,0.00041888,30]
[407714554,1772699448721,-153.0,0.000419,120]
[407714555,1772699448730,-151.0,0.000419,120]
[407714556,1772699448739,-2981.48,0.00041902,2]
[407714557,1772699448749,-4438.24,0.00041902,2]
[407714558,1772699448758,-20871.36,0.00041902,2]
[407714559,1772699448767,-250.0,0.00041902,92]
[407714560,1772699448776,-250.0,0.00041902,92]
[407714561,1772699448785,-250.0,0.00041902,92]
[407714562,1772699448794,-250.0,0.00041902,92]
[407714563,1772699448803,-250.0,0.00041902,92]
[407714564,1772699448812,-250.0,0.00041902,92]
[407714565,1772699448822,-1000.0,0.00041918,10]
[407714566,1772699448831,-600.0,0.00041918,10]
[407714567,1772699448839,-168.0,0.0004194,2]
[407714568,1772699448848,-305.0,0.00042,120]
[407714569,1772699448857,-305.0,0.00042,120]
[407714570,1772699448866,-305.0,0.00042,120]
[407714571,1772699448879,-305.0,0.00042,120]
[407714572,1772699448888,-305.0,0.00042,120]
[407714573,1772699448897,-305.0,0.00042,120]
[407714574,1772699448906,-305.0,0.00042,120]
[407714575,1772699448915,-305.0,0.00042,120]
[407714576,1772699448924,-305.0,0.00042,120]
[407714577,1772699448933,-305.0,0.00042,120]
[407714578,1772699448942,-305.0,0.00042,120]
[407714579,1772699448951,-305.0,0.00042,120]
[407714580,1772699448960,-305.0,0.00042,120]
[407714581,1772699448969,-305.0,0.00042,120]
[407714582,1772699448978,-305.0,0.00042,120]
[407714583,1772699448987,-305.0,0.00042,120]
[407714584,1772699448996,-304.0,0.00042,120]
[407714585,1772699449005,-304.0,0.00042,120]
[407714586,1772699449014,-304.0,0.00042,120]
[407714587,1772699449023,-454.71,0.00042,14]
[407714588,1772699449032,-150.0,0.00042,120]
[407714589,1772699449041,-207.13030045,0.00042087,5]
[407714590,1772699449050,-250.0,0.00042094,93]
[407714591,1772699449059,-150.0,0.00042173,120]
[407714592,1772699449067,-183.75782658,0.00042191,120]
[407714593,1772699449076,-350.0,0.00042192,10]
[407714594,1772699449085,-339.41571392,0.00042192,10]
[407714595,1772699449094,-952.34625423,0.00042192,7]
[407714596,1772699449105,-500.0,0.00042206,2]
[407714597,1772699449114,-287.37049951,0.00042208,28]
[407714598,1772699449123,-864.78058953,0.00042209,2]
[407714599,1772699449132,-693.3919763,0.00042209,2]
[407714600,1772699449141,-1048.50100127,0.00042218,2]
[407714601,1772699449150,-306.61635286,0.00042218,2]
[407714602,1772699449159,-856.13486002,0.00042218,2]
[407714603,1772699449168,-306.8296831,0.00042218,2]
[407714604,1772699449177,-300.0,0.00042218,2]
[407714605,1772699449188,-300.0,0.00042218,2]
[407714606,1772699449201,-300.0,0.00042218,2]
[407714607,1772699449212,-1084.19175733,0.00042218,2]
[407714608,1772699449221,-300.0,0.00042218,2]
[407714609,1772699449230,-300.0,0.00042218,2]
[407714610,1772699449241,-300.0,0.00042218,2]
[407714611,1772699449250,-1048.50100127,0.00042218,2]
[407714612,1772699449261,-409.10557655,0.00042218,2]
[407714613,1772699449271,-848.93095948,0.00042218,2]
[407714614,1772699449282,-861.22556341,0.00042218,2]
[407714615,1772699449292,-300.0,0.00042218,2]
[407714616,1772699449303,-300.0,0.00042218,2]
[407714617,1772699449315,-300.78628592,0.00042218,2]
[407714618,1772699449324,-497.60819881,0.00042219,14]
[407714619,1772699449334,-168.0,0.00042335,120]
[407714620,1772699449344,-1114.0,0.00042349,120]
[407714621,1772699449353,-152.0,0.00042429,10]
[407714622,1772699449363,-500.0,0.00042438,120]
[407714623,1772699449373,-500.0,0.00042438,120]
[407714624,1772699449382,-150.0,0.000425,120]
[407714625,1772699449392,-2651.5445,0.000425,7]
[407714626,1772699449401,-500.0,0.00042575,120]
[407714627,1772699449410,-500.0,0.00042575,120]
[407714628,1772699449420,-200.0,0.000426,23]
[407714629,1772699449429,-505.0,0.00042696,27]
[407714630,1772699449441,-500.0,0.00042712,120]
[407714631,1772699449461,-500.0,0.00042712,120]
[407714632,1772699449478,-1096.0,0.00042716,120]
[407714633,1772699449655,-658.0,0.00042716,120]
[407714634,1772699449685,-395.0,0.00042716,120]
[407714635,1772699449694,-450.0,0.0004274,10]
[407714636,1772699449703,-900.0,0.0004274,10]
[407714637,1772699449713,-571.27818364,0.0004274,120]
[407714638,1772699449723,-250.0,0.00042758,97]
[407714639,1772699449732,-250.0,0.00042758,97]
[407714640,1772699449741,-151.0,0.000428,120]
[407714641,1772699449750,-173.56,0.00042808,60]
[407714642,1772699449759,-162.34,0.00042808,60]
[407714643,1772699449769,-1353.3,0.00042824,30]
[407714644,1772699449777,-500.0,0.00042849,120]
[407714645,1772699449786,-500.0,0.00042849,120]
[407714646,1772699449796,-227.0,0.00042849,14]
[407714647,1772699449805,-153.0,0.000429,120]
[407714648,1772699449814,-2691.09483055,0.0004295,10]
[407714649,1772699449823,-500.0,0.00042986,120]
[407714650,1772699449832,-500.0,0.00042986,120]
[407714651,1772699449842,-161.0,0.00043,120]
[407714652,1772699449850,-150.0,0.00043,120]
[407714653,1772699449860,-500.0,0.00043,120]
[407714654,1772699449869,-500.0,0.00043,120]
[407714655,1772699449882,-152.0,0.00043022,11]
[407714656,1772699449892,-250.0,0.00043068,120]
[407714657,1772699449903,-250.0,0.00043068,120]
[407714658,1772699449912,-250.0,0.00043068,120]
[407714659,1772699449922,-250.0,0.00043068,120]
[407714660,1772699449932,-250.0,0.00043068,120]
[407714661,1772699449942,-250.0,0.00043068,120]
[407714662,1772699449953,-150.0,0.00043074,14]
[407714663,1772699449963,-172.0,0.00043074,14]
[407714664,1772699449973,-500.0,0.00043123,120]
[407714665,1772699449983,-500.0,0.00043123,120]
[407714666,1772699449992,-1158.4890981,0.00043156,15]
[407714667,1772699450001,-4740.89154135,0.00043156,15]
[407714668,1772699450011,-500.0,0.0004326,120]
[407714669,1772699450021,-500.0,0.0004326,120]
[407714670,1772699450030,-580.87024451,0.00043287,120]
[407714671,1772699450040,-550.0,0.00043288,10]
[407714672,1772699450050,-500.0,0.00043333,120]
[407714673,1772699450059,-350.0,0.00043379,14]
[407714674,1772699450069,-500.0,0.00043397,120]
[407714675,1772699450078,-500.0,0.00043397,120]
[407714676,1772699450087,-150.0,0.000435,120]
[407714677,1772699450096,-223.0,0.00043524,14]
[407714678,1772699450106,-500.0,0.00043534,120]
[407714679,1772699450115,-431.39303726,0.00043534,120]
[407714680,1772699450124,-1084.31216265,0.00043562,10]
[407714681,1772699450133,-513.0,0.00043586,120]
[407714682,1772699450142,-1841.5501063,0.00043586,120]
[407714683,1772699450151,-152.0,0.00043615,12]
[407714684,1772699450161,-635.21163987,0.00043671,120]
[407714685,1772699450170,-157.0,0.00043767,14]
[407714686,1772699450179,-1000.0,0.000438,30]
[407714687,1772699450188,-151.0,0.000438,120]
[407714688,1772699450198,-656.05091278,0.00043808,120]
[407714689,1772699450208,-151.0,0.00043833,120]
[407714690,1772699450217,-1363.36106609,0.00043835,120]
[407714691,1772699450227,-650.0,0.00043836,10]
[407714692,1772699450236,-800.0,0.00043836,120]
[407714693,1772699450245,-800.0,0.00043836,120]
[407714694,1772699450254,-800.0,0.00043836,120]
[407714695,1772699450263,-800.0,0.00043836,120]
[407714696,1772699450273,-800.0,0.00043836,120]
[407714697,1772699450282,-800.0,0.00043836,120]
[407714698,1772699450291,-800.0,0.00043836,120]
[407714699,1772699450301,-800.0,0.00043836,120]
[407714700,1772699450310,-800.0,0.00043836,120]
[407714701,1772699450320,-800.0,0.00043836,120]
[407714702,1772699450330,-800.0,0.00043836,120]
[407714703,1772699450339,-800.0,0.00043836,120]
[407714704,1772699450349,-800.0,0.00043836,120]
[407714705,1772699450358,-800.0,0.00043836,120]
[407714706,1772699450368,-800.0,0.00043836,120]
[407714707,1772699450377,-800.0,0.00043836,120]
[407714708,1772699450387,-800.0,0.00043836,120]
[407714709,1772699450396,-800.0,0.00043836,120]
[407714710,1772699450405,-800.0,0.00043836,120]
[407714711,1772699450414,-686.791662,0.00043836,120]
[407714712,1772699450424,-667.79,0.00043836,120]
[407714713,1772699450434,-164.80367716,0.00043836,5]
[407714714,1772699450443,-153.0,0.000439,120]
[407714715,1772699450452,-60493.91047619,0.0004399,2]
[407714716,1772699450462,-157.0,0.00044,120]
[407714717,1772699450472,-150.0,0.00044,120]
[407714718,1772699450481,-500.0,0.00044,120]
[407714719,1772699450491,-500.0,0.00044,120]
[407714720,1772699450500,-250.0,0.00044141,120]
[407714721,1772699450510,-160.13,0.00044167,120]
[407714722,1772699450520,-227.0,0.00044172,21]
[407714723,1772699450529,-152.0,0.00044208,13]
[407714724,1772699450538,-164.90342018,0.00044236,7]
[407714725,1772699450548,-160.13,0.00044267,120]
[407714726,1772699450557,-150.0,0.00044281,120]
[407714727,1772699450566,-160.13,0.00044367,120]
[407714728,1772699450576,-1042.4,0.00044378,120]
[407714729,1772699450585,-258.7680076,0.00044384,10]
[407714730,1772699450594,-534.41020395,0.00044389,2]
[407714731,1772699450604,-454.71,0.000444,14]
[407714732,1772699450613,-200.0,0.00044424,14]
[407714733,1772699450622,-200.0,0.00044424,14]
[407714734,1772699450631,-200.0,0.00044424,14]
[407714735,1772699450640,-200.0,0.00044424,14]
[407714736,1772699450650,-229.0,0.00044424,14]
[407714737,1772699450659,-500.0,0.00044431,60]
[407714738,1772699450669,-1595.07,0.00044431,30]
[407714739,1772699450678,-500.0,0.00044431,120]
[407714740,1772699450687,-500.0,0.00044431,120]
[407714741,1772699450700,-151.0,0.00044433,30]
[407714742,1772699450711,-200.0,0.00044433,7]
[407714743,1772699450720,-151.0,0.00044433,14]
[407714744,1772699450729,-166.0,0.00044433,14]
[407714745,1772699450738,-166.0,0.00044433,14]
[407714746,1772699450748,-166.0,0.00044433,14]
[407714747,1772699450758,-166.0,0.00044433,14]
[407714748,1772699450767,-166.0,0.00044433,14]
[407714749,1772699450777,-166.0,0.00044433,14]
[407714750,1772699450786,-166.0,0.00044433,14]
[407714751,1772699450795,-166.0,0.00044433,14]
[407714752,1772699450804,-172.0,0.00044433,14]
[407714753,1772699450814,-151.0,0.00044433,14]
[407714754,1772699450823,-1111.64475316,0.00044433,14]
[407714755,1772699450832,-151.0,0.00044433,14]
[407714756,1772699450842,-151.0,0.00044433,14]
[407714757,1772699450852,-151.0,0.00044433,14]
[407714758,1772699450861,-151.0,0.00044433,14]
[407714759,1772699450870,-152.0,0.00044433,14]
[407714760,1772699450883,-151.0,0.00044433,14]
[407714761,1772699450892,-152.0,0.00044433,14]
[407714762,1772699450901,-151.0,0.00044433,14]
[407714763,1772699450911,-151.0,0.00044433,14]
[407714764,1772699450923,-152.0,0.00044433,14]
[407714765,1772699450932,-152.0,0.00044433,14]
[407714766,1772699450941,-151.0,0.00044433,14]
[407714767,1772699450953,-151.0,0.00044433,14]
[407714768,1772699450963,-151.0,0.00044433,14]
[407714769,1772699450972,-151.0,0.00044433,14]
[407714770,1772699450982,-151.0,0.00044433,14]
[407714771,1772699450991,-151.0,0.00044433,14]
[407714772,1772699451000,-151.0,0.00044433,14]
[407714773,1772699451010,-500.0,0.00044433,2]
[407714774,1772699451032,-32785.42943946,0.00044433,2]
[407714775,1772699451046,-2868.60091276,0.0004444,120]
[407714776,1772699451055,-500.0,0.0004444,120]
[407714777,1772699451065,-160.13,0.00044461,120]
[407714778,1772699451074,-150.1,0.00044469,2]
[407714779,1772699451084,-150.1,0.00044469,2]
[407714780,1772699451093,-150.1,0.00044469,2]
[407714781,1772699451102,-545.44890009,0.000445,120]
[407714782,1772699451111,-170.30014049,0.000445,120]
[407714783,1772699451120,-150.0,0.000445,120]
[407714784,1772699451130,-224.051601,0.00044506,120]
[407714785,1772699451139,-350.0,0.00044521,14]
[407714786,1772699451148,-160.13,0.00044561,120]
[407714787,1772699451157,-150.0,0.00044567,14]
[407714788,1772699451167,-150.0,0.00044567,14]
[407714789,1772699451176,-199.82750225,0.00044567,14]
[407714790,1772699451185,-155.21794174,0.00044579,2]
[407714791,1772699451195,-150.0,0.0004459,21]
[407714792,1772699451205,-249.0,0.0004459,21]
[407714793,1772699451214,-372.35,0.000446,60]
[407714794,1772699451225,-200.0,0.000446,27]
[407714795,1772699451234,-150.0,0.00044614,120]
[407714796,1772699451243,-10965.0,0.00044639,60]
[407714797,1772699451253,-256.895,0.00044644,2]
[407714798,1772699451262,-150.156,0.00044644,2]
[407714799,1772699451272,-151.0,0.00044644,2]
[407714800,1772699451281,-160.13,0.00044661,120]
[407714801,1772699451290,-151.0,0.000447,120]
[407714802,1772699451299,-160.13,0.00044761,120]
[407714803,1772699451309,-976.64012655,0.000448,120]